fUSD/lending_fUSD_20250804
["ID","MTS","AMOUNT","RATE_DAILY","PERIOD"]
[377310431,1754332240298,-151.08,0.0003899,2]
[377310432,1754332240308,-21418.66597577,0.00039,2]
[377310433,1754332240318,-671.73345282,0.00039064,2]
[377310434,1754332240328,-816.4145042,0.00039196,2]
[377310435,1754332240337,-186.0,0.00039298,50]
[377310436,1754332240347,-961.09555557,0.00039329,2]
[377310437,1754332240357,-1378.82706609,0.00039368,5]
[377310438,1754332240367,-1500.0,0.00039368,5]
[377310439,1754332240376,-503.5126455,0.00039368,5]
[377310440,1754332240385,-1105.77660695,0.00039461,2]
[377310441,1754332240395,-1250.45765833,0.00039593,2]
[377310442,1754332240405,-1395.1387097,0.00039725,2]
[377310443,1754332240414,-307.7,0.00039771,15]
[377310444,1754332240424,-1539.81976108,0.00039858,2]
[377310445,1754332240433,-150.0,0.00039973,5]
[377310446,1754332240442,-7937.91331575,0.00039989,3]
[377310447,1754332240452,-1000.0,0.0003999,120]
[377310448,1754332240462,-1684.50081246,0.0003999,2]
[377310449,1754332240471,-10574.06949948,0.00039999,2]
[377310450,1754332240482,-350652.04099783,0.00039999,2]
[377310451,1754332240499,-6639.47274243,0.0004,2]
[377310452,1754332240508,-292.6954,0.0004,120]
[377310453,1754332240518,-1523.50262944,0.0004,2]
[377310454,1754332240527,-464.04557269,0.0004,2]
[377310455,1754332240537,-198853.61229667,0.0004,120]
[377310456,1754332240547,-162.72222168,0.0004,120]
[377310457,1754332240556,-250.0,0.00040521,5]
[377310458,1754332240566,-348.70301418,0.000408,60]
[377310459,1754332240576,-2250.39811378,0.00041,7]
[377310460,1754332240585,-350.0,0.00041068,5]
[377310461,1754332240595,-307.7,0.00041273,120]
[377310462,1754332240604,-450.0,0.00041616,10]
[377310463,1754332240614,-428.85697148,0.00041667,120]
[377310464,1754332240624,-2366.75,0.000417,14]
[377310465,1754332240633,-841.59890878,0.00041804,2]
[377310466,1754332240642,-160.0,0.00041804,2]
[377310467,1754332240653,-457.2201239,0.00041804,2]
[377310468,1754332240662,-376.21225651,0.00042,120]
[377310469,1754332240671,-2350.34463904,0.0004203,15]
[377310470,1754332240680,-1421.93,0.000421,30]
[377310471,1754332240689,-550.0,0.00042164,10]
[377310472,1754332240699,-7937.91331575,0.0004219,3]
[377310473,1754332240708,-3600.0,0.000422,2]
[377310474,1754332240718,-2500.0,0.00042698,10]
[377310475,1754332240727,-300.0,0.00042712,10]
[377310476,1754332240737,-307.7,0.00042775,120]
[377310477,1754332240746,-1000.0,0.0004299,120]
[377310478,1754332240755,-152.37459447,0.00043,120]
[377310479,1754332240765,-1000.0,0.00043098,2]
[377310480,1754332240775,-154.26102665,0.000435,30]
[377310481,1754332240784,-5387.06,0.00043731,7]
[377310482,1754332240793,-194.35907623,0.00043836,2]
[377310483,1754332240802,-21531.9687235,0.0004399,3]
[377310484,1754332240812,-7937.91331575,0.0004399,3]
[377310486,1754332240823,-7402.08468176,0.00044,7]
[377310487,1754332240832,-652.46739545,0.00044,120]
[377310488,1754332240842,-206.86235254,0.00044,120]
[377310489,1754332240852,-547.1938562,0.00044,120]
[377310490,1754332240863,-449.1960482,0.00044,120]
[377310491,1754332240873,-2366.75,0.00044,14]
[377310492,1754332240882,-219.25,0.00044113,120]
[377310493,1754332240891,-153.00328513,0.0004425,120]
[377310494,1754332240901,-307.7,0.00044278,120]
[377310495,1754332240910,-293.53544314,0.0004439,120]
[377310496,1754332240920,-166.54,0.00044826,2]
[377310497,1754332240929,-7937.91331575,0.0004499,3]
[377310498,1754332240940,-17274.62305153,0.00045,100]
[377310499,1754332240950,-154.0,0.00045,120]
[377310500,1754332240959,-433.30272908,0.00045,120]
[377310501,1754332240969,-7537.57201937,0.00045,120]
[377310502,1754332240978,-524.48524192,0.00045,120]
[377310503,1754332240988,-209.95833796,0.00045,120]
[377310504,1754332240997,-1863.33514451,0.00045,120]
[377310505,1754332241007,-264.28950242,0.00045,120]
[377310506,1754332241016,-516.7055503,0.00045,120]
[377310507,1754332241027,-1421.93,0.00045,30]
[377310508,1754332241036,-223.33369091,0.00045,120]
[377310509,1754332241045,-1168.5420667,0.00045,120]
[377310510,1754332241054,-505.22807118,0.00045,120]
[377310511,1754332241064,-1080.07696159,0.00045,30]
[377310512,1754332241073,-597.2141027,0.00045,10]
[377310513,1754332241084,-2096.60836088,0.00045,120]
[377310514,1754332241103,-153.0,0.00045,120]
[377310515,1754332241117,-2350.34463904,0.00045196,15]
[377310516,1754332241126,-865.59667554,0.000455,120]
[377310517,1754332241136,-979.93954772,0.000455,120]
[377310518,1754332241145,-666.0,0.00045675,3]
[377310519,1754332241155,-307.7,0.0004578,120]
[377310520,1754332241164,-21531.9687235,0.00045834,3]
[377310521,1754332241174,-7937.91331575,0.00045834,3]
[377310522,1754332241183,-219.25,0.00045843,120]
[377310523,1754332241193,-1000.0,0.00045844,30]
[377310524,1754332241202,-1000.0,0.00045844,30]
[377310525,1754332241211,-1000.0,0.00045844,30]
[377310526,1754332241220,-1000.0,0.00045844,30]
[377310527,1754332241230,-1000.0,0.00045844,30]
[377310528,1754332241239,-1000.0,0.00045844,30]
[377310529,1754332241248,-1000.0,0.00045844,30]
[377310530,1754332241257,-1000.0,0.00045844,30]
[377310531,1754332241267,-1000.0,0.00045844,30]
[377310532,1754332241276,-814.0,0.00045844,30]
[377310533,1754332241285,-1331.32324905,0.000459,120]
[377310534,1754332241294,-7937.91331575,0.00045949,3]
[377310535,1754332241304,-150.0,0.00045959,30]
[377310536,1754332241314,-150.0,0.00045959,30]
[377310537,1754332241323,-150.0,0.00045959,30]
[377310538,1754332241332,-150.0,0.00045959,30]
[377310539,1754332241342,-150.0,0.00045959,30]
[377310540,1754332241351,-172.88,0.00045959,30]
[377310541,1754332241362,-359.08,0.00045959,30]
[377310542,1754332241372,-165.39,0.00045959,30]
[377310543,1754332241381,-150.0,0.00045959,30]
[377310544,1754332241391,-172.88,0.00045959,30]
[377310545,1754332241400,-165.39,0.00045959,30]
[377310546,1754332241409,-172.88,0.00045959,30]
[377310547,1754332241419,-165.39,0.00045959,30]
[377310548,1754332241428,-359.08,0.00045959,30]
[377310549,1754332241438,-165.39,0.00045959,30]
[377310550,1754332241448,-359.08,0.00045959,30]
[377310551,1754332241457,-165.39,0.00045959,30]
[377310552,1754332241466,-359.08,0.00045959,30]
[377310553,1754332241476,-443.2,0.00045959,30]
[377310554,1754332241485,-359.08,0.00045959,30]
[377310555,1754332241495,-359.08,0.00045959,30]
[377310556,1754332241504,-359.08,0.00045959,30]
[377310557,1754332241514,-359.08,0.00045959,30]
[377310558,1754332241523,-150.0,0.00045959,30]
[377310559,1754332241532,-306.54,0.00045959,30]
[377310560,1754332241542,-150.0,0.00045959,30]
[377310561,1754332241551,-150.52,0.00045959,30]
[377310562,1754332241561,-150.0,0.00045959,30]
[377310563,1754332241570,-150.0,0.00045959,30]
[377310564,1754332241580,-150.0,0.00045959,30]
[377310565,1754332241590,-356.97,0.00045959,30]
[377310566,1754332241600,-150.0,0.00045959,30]
[377310567,1754332241609,-150.0,0.00045959,30]
[377310568,1754332241619,-150.0,0.00045959,30]
[377310569,1754332241628,-224.74,0.00045959,30]
[377310570,1754332241638,-150.0,0.00045959,30]
[377310571,1754332241648,-21531.9687235,0.00045997,3]
[377310572,1754332241657,-15875.8266315,0.00045997,3]
[377310573,1754332241666,-799.75991765,0.00046,120]
[377310574,1754332241676,-1000.0,0.00046,30]
[377310575,1754332241686,-154.0,0.000463,120]
[377310576,1754332241696,-2366.75,0.000463,14]
[377310577,1754332241705,-513.56151364,0.000464,120]
[377310578,1754332241715,-755.15705471,0.000464,120]
[377310579,1754332241724,-153.0,0.000464,120]
[377310580,1754332241734,-979.80356975,0.00046466,120]
[377310581,1754332241743,-511.07402694,0.00046475,24]
[377310582,1754332241753,-86127.8748938,0.00046565,3]
[377310583,1754332241763,-87317.0464733,0.00046565,3]
[377310584,1754332241773,-1313.72112197,0.000468,120]
[377310585,1754332241783,-363.86271134,0.000468,120]
[377310586,1754332241793,-5800.0,0.00047105,14]
[377310587,1754332241802,-307.7,0.00047282,120]
[377310588,1754332241812,-1421.93,0.000473,30]
[377310589,1754332241822,-219.25,0.00047574,120]
[377310590,1754332241832,-154.0,0.000476,120]
[377310591,1754332241841,-153.0,0.000478,120]
[377310592,1754332241851,-787.44291558,0.0004788,100]
[377310593,1754332241860,-2010.0,0.00048,120]
[377310594,1754332241871,-24619.9957057,0.00048,91]
[377310595,1754332241880,-1388.519999,0.00048,120]
[377310596,1754332241890,-7937.91331575,0.00048352,4]
[377310597,1754332241899,-2350.34463904,0.00048362,15]
[377310598,1754332241909,-1000.0,0.00048485,2]
[377310599,1754332241918,-194.06,0.000485,2]
[377310600,1754332241927,-2366.75,0.000485,14]
[377310601,1754332241937,-307.7,0.00048785,120]
[377310602,1754332241947,-154.0,0.000489,120]
[377310603,1754332241957,-159.72,0.00048924,2]
[377310604,1754332241967,-500.0,0.00049,120]
[377310605,1754332241977,-2461.84437369,0.00049,2]
[377310606,1754332241986,-39055.68077888,0.00049007,2]
[377310607,1754332241996,-181.39850774,0.00049096,2]
[377310608,1754332242007,-511.0,0.00049167,10]
[377310609,1754332242023,-153.0,0.000492,120]
[377310610,1754332242033,-175.0,0.0004921,7]
[377310611,1754332242042,-219.25,0.00049304,120]
[377310612,1754332242051,-305.39721356,0.00049314,120]
[377310613,1754332242061,-404.30966179,0.00049314,120]
[377310614,1754332242071,-150.0,0.00049315,120]
[377310615,1754332242080,-150.0,0.00049315,120]
[377310616,1754332242093,-500.0,0.00049315,120]
[377310617,1754332242102,-500.0,0.00049315,120]
[377310618,1754332242112,-500.0,0.00049315,120]
[377310619,1754332242122,-150.0,0.00049315,120]
[377310620,1754332242131,-150.0,0.00049315,120]
[377310621,1754332242141,-150.0,0.00049315,120]
[377310622,1754332242150,-150.0,0.00049315,2]
[377310623,1754332242160,-500.0,0.00049315,120]
[377310624,1754332242169,-150.0,0.00049315,2]
[377310625,1754332242179,-150.0,0.00049315,120]
[377310626,1754332242188,-500.0,0.00049315,120]
[377310627,1754332242197,-150.0,0.00049589,120]
[377310628,1754332242206,-150.0,0.00049589,120]
[377310629,1754332242219,-500.0,0.00049589,120]
[377310630,1754332242228,-500.0,0.00049589,120]
[377310631,1754332242237,-500.0,0.00049589,120]
[377310632,1754332242247,-150.0,0.00049589,120]
[377310633,1754332242256,-500.0,0.00049589,120]
[377310634,1754332242266,-500.0,0.00049589,120]
[377310635,1754332242275,-1000.0,0.000496,120]
[377310636,1754332242285,-1421.93,0.000496,30]
[377310637,1754332242294,-1000.0,0.000496,120]
[377310638,1754332242303,-511.0,0.00049683,10]
[377310639,1754332242313,-500.0,0.00049758,120]
[377310640,1754332242323,-2000.0,0.00049758,120]
[377310642,1754332242332,-500.0,0.00049758,120]
[377310643,1754332242341,-200.0,0.00049758,120]
[377310644,1754332242351,-4000.0,0.00049778,8]
[377310645,1754332242360,-150.0,0.00049863,120]
[377310646,1754332242369,-500.0,0.00049863,120]
[377310647,1754332242379,-500.0,0.00049863,120]
[377310648,1754332242388,-500.0,0.00049863,120]
[377310649,1754332242397,-500.0,0.00049863,120]
[377310650,1754332242406,-7937.91331575,0.00049928,4]
[377310651,1754332242415,-165.82,0.00049938,2]
[377310652,1754332242425,-1530.38,0.00049938,2]
[377310653,1754332242434,-1173.72,0.00049938,120]
[377310654,1754332242443,-745.91,0.00049938,120]
[377310655,1754332242453,-3499.97,0.0004998,7]
[377310657,1754332242463,-1150.02,0.0004998,7]
[377310658,1754332242472,-43063.9374469,0.0004998,4]
[377310659,1754332242481,-23813.7399473,0.0004998,4]
[377310660,1754332242491,-50503.68424847,0.0004999,30]
[377310661,1754332242501,-7937.91331575,0.0004999,4]
[377310662,1754332242510,-407.075724,0.0005,120]
[377310663,1754332242519,-1000.0,0.0005,120]
[377310664,1754332242528,-2000.0,0.0005,120]
[377310665,1754332242537,-962.71,0.0005,120]
[377310666,1754332242546,-2264.9336826,0.0005,120]
[377310668,1754332242556,-153.85,0.0005,120]
[377310669,1754332242565,-154.0,0.000501,120]
[377310670,1754332242575,-2366.75,0.000501,60]
[377310671,1754332242585,-150.0,0.00050137,120]
[377310672,1754332242594,-500.0,0.00050137,120]
[377310673,1754332242604,-346.0,0.00050137,120]
[377310674,1754332242614,-500.0,0.00050137,120]
[377310675,1754332242623,-500.0,0.00050137,120]
[377310676,1754332242632,-511.0,0.00050199,20]
[377310677,1754332242642,-962.71,0.00050273,120]
[377310678,1754332242651,-307.7,0.00050287,120]
[377310679,1754332242661,-151.99,0.00050357,14]
[377310680,1754332242670,-150.0,0.00050411,120]
[377310681,1754332242680,-500.0,0.00050411,120]
[377310682,1754332242690,-500.0,0.00050411,120]
[377310683,1754332242699,-500.0,0.00050411,120]
[377310684,1754332242709,-153.0,0.000505,120]
[377310685,1754332242718,-962.71,0.00050547,120]
[377310686,1754332242728,-500.0,0.00050558,2]
[377310687,1754332242738,-500.0,0.00050558,2]
[377310688,1754332242747,-500.0,0.00050558,2]
[377310689,1754332242757,-600.0,0.00050558,2]
[377310690,1754332242767,-600.0,0.00050579,18]
[377310691,1754332242776,-600.0,0.00050579,18]
[377310692,1754332242786,-600.0,0.00050579,18]
[377310693,1754332242796,-600.0,0.00050579,18]
[377310694,1754332242807,-600.0,0.00050579,18]
[377310695,1754332242816,-600.0,0.00050579,18]
[377310696,1754332242826,-600.0,0.00050579,18]
[377310697,1754332242836,-600.0,0.00050579,18]
[377310698,1754332242846,-600.0,0.00050579,18]
[377310699,1754332242855,-600.0,0.00050579,18]
[377310700,1754332242866,-600.0,0.00050579,38]
[377310701,1754332242876,-250.0,0.00050685,120]
[377310702,1754332242886,-500.0,0.00050685,120]
[377310703,1754332242895,-500.0,0.00050685,120]
[377310704,1754332242906,-500.0,0.00050685,120]
[377310705,1754332242915,-511.0,0.00050715,20]
[377310706,1754332242925,-1405.95374961,0.00050755,120]
[377310712,1754332243239,-962.71,0.00050821,120]
[377310713,1754332243280,-7937.91331575,0.00050832,4]
[377310715,1754332243290,-1000.0,0.000509,120]
[377310717,1754332243300,-1000.0,0.000509,120]
[377310718,1754332243310,-500.0,0.00050959,120]
[377310719,1754332243320,-500.0,0.00050959,120]
[377310720,1754332243330,-500.0,0.00050959,120]
[377310721,1754332243340,-1000.0,0.00051,120]
[377310722,1754332243349,-150.0,0.00051,120]
[377310723,1754332243359,-150.0,0.00051,120]
[377310724,1754332243370,-1421.93,0.00051,30]
[377310725,1754332243379,-540.91261759,0.00051,30]
[377310726,1754332243389,-219.25,0.00051035,120]
[377310727,1754332243398,-257.6046725,0.00051087,10]
[377310728,1754332243408,-962.71,0.00051095,120]
[377310729,1754332243417,-230.2184,0.000512,2]
[377310730,1754332243427,-1537.52577121,0.000512,2]
[377310731,1754332243436,-511.0,0.00051231,20]
[377310732,1754332243446,-500.0,0.00051233,120]
[377310733,1754332243456,-500.0,0.00051233,120]
[377310734,1754332243466,-500.0,0.00051233,120]
[377310735,1754332243476,-150.0,0.00051274,120]
[377310736,1754332243486,-21531.9687235,0.0005129,4]
[377310737,1754332243495,-23813.7399473,0.0005129,4]
[377310738,1754332243505,-597.0,0.000513,120]
[377310739,1754332243515,-2023.0,0.000513,120]
[377310740,1754332243524,-1292.0,0.000513,120]
[377310741,1754332243534,-1651.0,0.000513,120]
[377310742,1754332243543,-3071.331,0.000513,2]
[377310743,1754332243552,-1181.195,0.000513,120]
[377310744,1754332243562,-3360.0,0.000513,120]
[377310745,1754332243571,-4137.0,0.000513,120]
[377310746,1754332243581,-1307.0,0.000513,120]
[377310747,1754332243590,-6170.422,0.000513,120]
[377310748,1754332243600,-500.0,0.000513,120]
[377310749,1754332243609,-150.0,0.000513,120]
[377310750,1754332243619,-150.0,0.000513,120]
[377310751,1754332243628,-150.0,0.000513,120]
[377310752,1754332243638,-150.0,0.000513,120]
[377310753,1754332243648,-150.0,0.000513,120]
[377310754,1754332243658,-511.0,0.000513,120]
[377310755,1754332243667,-500.0,0.000513,120]
[377310756,1754332243677,-150.0,0.000513,120]
[377310757,1754332243687,-150.0,0.000513,120]
[377310758,1754332243697,-150.0,0.000513,120]
[377310759,1754332243706,-2366.75,0.000513,60]
[377310760,1754332243716,-962.71,0.00051369,120]
[377310761,1754332243726,-21531.9687235,0.00051386,4]
[377310762,1754332243736,-154.0,0.000514,120]
[377310763,1754332243746,-167.77,0.00051436,2]
[377310764,1754332243756,-500.0,0.00051507,120]
[377310765,1754332243766,-500.0,0.00051507,120]
[377310766,1754332243776,-500.0,0.00051507,120]
[377310767,1754332243786,-2350.34463904,0.00051528,15]
[377310768,1754332243795,-7937.91331575,0.00051564,4]
[377310769,1754332243805,-299.99,0.00051571,120]
[377310770,1754332243815,-150.99,0.00051571,30]
[377310771,1754332243826,-5199.07,0.00051571,2]
[377310772,1754332243835,-301.65,0.00051571,2]
[377310773,1754332243845,-3073.77,0.00051571,90]
[377310774,1754332243855,-499.99,0.00051571,30]
[377310775,1754332243866,-8145.36,0.00051571,2]
[377310776,1754332243875,-3593.71,0.00051571,2]
[377310777,1754332243885,-327.81,0.00051571,2]
[377310778,1754332243895,-9999.99,0.00051571,2]
[377310779,1754332243905,-150.99,0.00051571,2]
[377310780,1754332243915,-18840.9,0.00051571,30]
[377310781,1754332243925,-999.99,0.00051571,10]
[377310782,1754332243935,-2213.73,0.00051571,2]
[377310783,1754332243947,-3093.72,0.00051571,2]
[377310784,1754332243957,-500.0,0.00051574,120]
[377310785,1754332243967,-150.0,0.00051574,120]
[377310786,1754332243977,-150.0,0.00051574,120]
[377310787,1754332243987,-511.0,0.00051574,120]
[377310788,1754332243997,-500.0,0.00051574,120]
[377310789,1754332244007,-150.0,0.00051574,120]
[377310790,1754332244017,-151.99,0.00051619,14]
[377310791,1754332244026,-962.71,0.00051643,120]
[377310792,1754332244036,-7937.91331575,0.00051709,4]
[377310793,1754332244047,-14615.0831,0.00051719,2]
[377310794,1754332244056,-511.0,0.00051746,20]
[377310795,1754332244066,-500.0,0.00051781,120]
[377310796,1754332244076,-500.0,0.00051781,120]
[377310797,1754332244089,-500.0,0.00051781,120]
[377310798,1754332244100,-307.7,0.00051789,120]
[377310799,1754332244110,-246.53,0.00051808,14]
[377310800,1754332244121,-150.0,0.00051827,120]
[377310801,1754332244131,-466.7,0.00051841,30]
[377310802,1754332244140,-500.0,0.00051848,120]
[377310803,1754332244150,-200.0,0.00051848,120]
[377310804,1754332244160,-200.0,0.00051848,120]
[377310805,1754332244169,-511.0,0.00051848,120]
[377310806,1754332244179,-166.55360696,0.00051848,120]
[377310807,1754332244189,-150.0,0.00051848,120]
[377310808,1754332244199,-153.0,0.000519,120]
[377310809,1754332244209,-962.71,0.00051917,120]
[377310810,1754332244220,-7937.91331575,0.0005199,4]
[377310811,1754332244230,-2000.0,0.00052,120]
[377310812,1754332244239,-1000.0,0.00052,120]
[377310813,1754332244249,-2000.0,0.00052,120]
[377310814,1754332244260,-1000.0,0.00052,30]
[377310815,1754332244269,-769.79280595,0.00052,120]
[377310816,1754332244279,-4000.0,0.00052025,8]
[377310817,1754332244290,-500.0,0.00052055,120]
[377310818,1754332244300,-500.0,0.00052055,120]
[377310819,1754332244310,-500.0,0.00052055,120]
[377310820,1754332244319,-333.8940001,0.00052055,120]
[377310821,1754332244329,-511.0,0.00052122,120]
[377310822,1754332244338,-200.0,0.00052122,120]
[377310823,1754332244348,-194.06,0.00052124,14]
[377310824,1754332244358,-150.0,0.00052141,12]
[377310825,1754332244369,-21531.9687235,0.00052182,4]
[377310826,1754332244379,-962.71,0.00052191,120]
[377310827,1754332244389,-1421.93,0.000522,30]
[377310828,1754332244399,-511.0,0.00052262,20]
[377310829,1754332244409,-500.0,0.00052329,120]
[377310830,1754332244419,-500.0,0.00052329,120]
[377310831,1754332244429,-428.944036,0.00052329,120]
[377310832,1754332244438,-186.18222612,0.00052342,120]
[377310833,1754332244448,-7937.91331575,0.00052366,4]
[377310834,1754332244458,-7937.91331575,0.00052367,4]
[377310835,1754332244468,-10465.16370652,0.00052376,2]
[377310836,1754332244478,-511.0,0.00052396,120]
[377310837,1754332244487,-222.29464346,0.00052447,120]
[377310838,1754332244497,-962.71,0.00052465,120]
[377310839,1754332244507,-2008.43,0.000525,120]
[377310840,1754332244517,-813.80507,0.0005251,61]
[377310841,1754332244527,-211.425049,0.00052595,2]
[377310842,1754332244537,-2200.0,0.000526,19]
[377310843,1754332244546,-2366.75,0.000526,60]
[377310844,1754332244557,-578.6588498,0.00052603,120]
[377310845,1754332244567,-500.0,0.00052603,120]
[377310846,1754332244576,-1789597.93361572,0.00052651,7]
[377310847,1754332245354,-691.02941632,0.00035035,2]
[377310848,1754332245368,-43.90522575,0.00035035,2]
[377310849,1754332245378,-809.964,0.000513,2]
[377310850,1754332245389,-1339.53951054,0.00052651,7]
[377310851,1754332245425,-2316.82903239,0.00052651,7]
[377310852,1754332245438,-596.25,0.00052651,7]
[377310853,1754332245450,-2820.0,0.00052651,7]
[377310854,1754332245483,-4274.46149474,0.00052651,7]
[377310855,1754332245495,-11797.27339778,0.00052651,7]
[377310856,1754332245539,-11633.622,0.00052651,7]
[377310857,1754332245706,-7815.98920588,0.00052651,7]
[377310858,1754332245719,-2613.10407326,0.00052651,7]
[377310859,1754332245730,-1782.5,0.00052651,7]
[377310860,1754332245743,-1578.7913238,0.00052651,7]
[377310861,1754332245755,-71590.0105761,0.00052651,7]
[377310862,1754332245766,-33257.57800618,0.00052651,7]
[377310863,1754332245795,-401.71,0.00052651,7]
[377310864,1754332245807,-54896.23119849,0.00052651,7]
[377310865,1754332245819,-915.6857705,0.00052651,7]
[377310866,1754332246701,-229.11873693,0.000291,2]
[377310867,1754332246711,-8017.24735077,0.00031014,2]
[377310868,1754332246723,-388.9880328,0.00031014,2]
[377310869,1754332246739,-1481.65906891,0.00031014,2]
[377310870,1754332246909,-4146.95912565,0.00031014,2]
[377310871,1754332246921,-15479.8467433,0.00031014,2]
[377310872,1754332246931,-888.0,0.000473,120]
[377310873,1754332246941,-1114409.04163822,0.00052651,7]
[377310874,1754332246968,-694.61782,0.00052651,7]
[377310875,1754332246996,-2355.96293395,0.00052651,7]
[377310876,1754332247008,-317.98,0.00052651,7]
[377310877,1754332247019,-380.71414666,0.00052651,7]
[377310881,1754332249267,-229.11873693,0.000334,2]
[377310882,1754332249277,-728.90128707,0.00036497,2]
[377310883,1754332249289,-6.033355,0.00036497,2]
[377310884,1754332249300,-113613.81818806,0.00052651,7]
[377310885,1754332249354,-1022.21564024,0.00052651,7]
[377310886,1754332249379,-4302.73279282,0.00052651,7]
[377310887,1754332249391,-2941.11099506,0.00052651,7]
[377310888,1754332249403,-673.2609601,0.00052651,7]
[377310889,1754332249418,-3786.99999997,0.00052651,7]
[377310890,1754332249446,-1184.7079379,0.00052651,7]
[377311001,1754332550062,162.79,0.00013699,2]
[377311026,1754332704775,152.27531025,0.0002,20]
[377311182,1754333141491,407.32795773,0.00030137,120]
[377311226,1754333432668,-162.79,0.00031311,2]
[377311227,1754333432677,-423.73799764,0.00034043,2]
[377311228,1754333432700,-382.54934914,0.00034043,2]
[377311229,1754333432709,-631.4,0.00038168,7]
[377311230,1754333432718,-298.88221199,0.00038198,2]
[377311231,1754333432728,-290.458512,0.00038298,7]
[377311232,1754333432737,-350.315094,0.00038298,7]
[377311233,1754333432746,-350.315094,0.00038298,7]
[377311234,1754333432756,-151.0,0.00038298,7]
[377311235,1754333432766,-151.0,0.00038298,7]
[377311236,1754333432775,-208.36288477,0.000389,39]
[377311237,1754333432785,-600.0,0.00038938,7]
[377311238,1754333432795,-600.0,0.00038938,7]
[377311239,1754333432804,-600.0,0.00038938,7]
[377311240,1754333432813,-600.0,0.00038938,7]
[377311241,1754333432823,-2604.98497928,0.00038962,2]
[377311242,1754333432832,-160.41,0.00039031,7]
[377311243,1754333432841,-500.0,0.0003915,5]
[377311244,1754333432851,-500.0,0.0003915,5]
[377311245,1754333432860,-500.0,0.0003915,5]
[377311246,1754333432869,-186.0,0.00039297,50]
[377311247,1754333432878,-500.0,0.00039533,5]
[377311248,1754333432888,-457.2201239,0.00039645,2]
[377311249,1754333432898,-211.425049,0.00039645,2]
[377311250,1754333432908,-631.4,0.0003968,15]
[377311251,1754333432917,-505.25900201,0.00039698,5]
[377311252,1754333432928,-1000.0,0.00039698,5]
[377311253,1754333432938,-492.32,0.00039806,2]
[377311254,1754333432948,-300.75792251,0.0003999,120]
[377311255,1754333432958,-350.315094,0.0004,14]
[377311256,1754333432967,-350.315094,0.0004,14]
[377311257,1754333432977,-350.315094,0.0004,14]
[377311258,1754333432987,-350.315094,0.0004,14]
[377311259,1754333432996,-151.0,0.0004,14]
[377311260,1754333433006,-38.4794014,0.0004,14]
[377311261,1754333433018,-112.5205986,0.0004,14]
[377311262,1754333433028,-151.0,0.0004,14]
[377311263,1754333433038,-151.0,0.0004,14]
[377311264,1754333433048,-1013.80652929,0.00040081,5]
[377311265,1754333433057,-1000.0,0.00040246,5]
[377311266,1754333433067,-422.448,0.00040394,57]
[377311267,1754333433076,-2221.01317963,0.00040394,2]
[377311268,1754333433088,-1869.11290067,0.00040394,2]
[377311269,1754333433097,-174.12,0.00041072,2]
[377311270,1754333433107,-631.4,0.00041191,120]
[377311271,1754333433117,-492.32,0.00041536,120]
[377311272,1754333433126,-1699.86323094,0.00041979,2]
[377311273,1754333433136,-500.0,0.00042225,5]
[377311274,1754333433146,-500.0,0.00042475,10]
[377311275,1754333433156,-500.0,0.00042475,10]
[377311276,1754333433166,-631.4,0.00042703,120]